fUSD/lending_fUSD_20260408
["ID","MTS","AMOUNT","RATE_DAILY","PERIOD"]
[420079478,1775657432518,-570.51158875,9.587e-05,2]
[420079479,1775657432528,-570.51158875,9.587e-05,2]
[420079480,1775657432538,-570.51158875,9.587e-05,2]
[420079481,1775657432548,-570.51158875,9.587e-05,2]
[420079482,1775657432558,-570.51158875,9.587e-05,2]
[420079483,1775657432569,-570.51158875,9.587e-05,2]
[420079484,1775657432579,-570.51158875,9.587e-05,2]
[420079485,1775657432589,-570.51158875,9.587e-05,2]
[420079486,1775657432599,-570.51158875,9.587e-05,2]
[420079487,1775657432610,-570.51158875,9.587e-05,2]
[420079488,1775657432620,-570.51158875,9.587e-05,2]
[420079489,1775657432633,-570.51158875,9.587e-05,2]
[420079491,1775657432643,-570.51158875,9.587e-05,2]
[420079493,1775657432654,-570.51158875,9.587e-05,2]
[420079494,1775657432664,-570.51158875,9.587e-05,2]
[420079496,1775657432674,-570.51158875,9.587e-05,2]
[420079498,1775657432683,-570.51158875,9.587e-05,2]
[420079500,1775657432693,-570.51158875,9.587e-05,2]
[420079502,1775657432703,-570.51158875,9.587e-05,2]
[420079504,1775657432713,-570.51158875,9.587e-05,2]
[420079505,1775657432722,-570.51158875,9.587e-05,2]
[420079507,1775657432732,-570.51158875,9.587e-05,2]
[420079509,1775657432743,-570.51158875,9.587e-05,2]
[420079511,1775657432752,-570.51158875,9.587e-05,2]
[420079539,1775657433142,-570.51158875,9.587e-05,2]
[420079541,1775657433155,-570.51158875,9.587e-05,2]
[420079543,1775657433166,-570.51158875,9.587e-05,2]
[420079544,1775657433177,-570.51158875,9.587e-05,2]
[420079546,1775657433188,-570.51158875,9.587e-05,2]
[420079548,1775657433200,-570.51158875,9.587e-05,2]
[420079550,1775657433212,-570.51158875,9.587e-05,2]
[420079552,1775657433222,-570.51158875,9.587e-05,2]
[420079554,1775657433233,-570.51158875,9.587e-05,2]
[420079556,1775657433244,-570.51158875,9.587e-05,2]
[420079557,1775657433255,-570.51158875,9.587e-05,2]
[420079559,1775657433266,-866.50424193,9.587e-05,2]
[420079561,1775657433276,-866.50424193,9.587e-05,2]
[420079563,1775657433287,-866.50424193,9.587e-05,2]
[420079565,1775657433300,-866.50424193,9.587e-05,2]
[420079567,1775657433310,-324.83490787,9.587e-05,2]
[420079569,1775657433325,-541.66933406,9.587e-05,2]
[420079571,1775657433337,-866.50424193,9.587e-05,2]
[420079573,1775657433347,-866.50424193,9.587e-05,2]
[420079574,1775657433358,-866.50424193,9.587e-05,2]
[420079576,1775657433369,-866.50424193,9.587e-05,2]
[420079578,1775657433380,-866.50424193,9.587e-05,2]
[420079580,1775657433396,-866.50424193,9.587e-05,2]
[420079582,1775657433407,-866.50424193,9.587e-05,2]
[420079584,1775657433417,-866.50424193,9.587e-05,2]
[420079586,1775657433428,-254.03555476,9.587e-05,2]
[420079655,1775657434261,-615.73022702,9.588e-05,2]
[420079657,1775657434275,-494.0156711,9.588e-05,2]
[420079659,1775657434287,-500.0,9.588e-05,2]
[420079661,1775657434298,-7611.53,9.589e-05,2]
[420079662,1775657434309,-3322.24554044,9.589e-05,2]
[420079665,1775657434322,-4451.41049392,9.589e-05,2]
[420079667,1775657434335,-659.1457183,9.589e-05,2]
[420079669,1775657434347,-952.0,9.589e-05,2]
[420079671,1775657434361,-297.95926621,9.589e-05,2]
[420079673,1775657434377,-317.22898113,9.589e-05,2]
[420079675,1775657434387,-2575.12544026,9.589e-05,2]
[420079677,1775657434399,-17424.86455974,9.589e-05,2]
[420079678,1775657434409,-9999.99,9.589e-05,2]
[420079680,1775657434419,-9999.99,9.589e-05,2]
[420079682,1775657434429,-2500.0,9.589e-05,2]
[420079684,1775657434439,-345.0,9.624e-05,2]
[420079686,1775657434451,-532.0,9.643e-05,2]
[420079688,1775657434461,-296.00508003,9.653e-05,2]
[420079690,1775657434473,-1200.0,9.661e-05,2]
[420079692,1775657434483,-500.0,9.663e-05,2]
[420079694,1775657434494,-500.0,9.663e-05,2]
[420079696,1775657434504,-500.0,9.663e-05,2]
[420079697,1775657434516,-500.0,9.663e-05,2]
[420079699,1775657434527,-500.0,9.663e-05,2]
[420079701,1775657434539,-500.0,9.663e-05,2]
[420079703,1775657434549,-500.0,9.663e-05,2]
[420079705,1775657434560,-500.0,9.663e-05,2]
[420079707,1775657434570,-500.0,9.663e-05,2]
[420079709,1775657434580,-500.0,9.663e-05,2]
[420079710,1775657434592,-500.0,9.663e-05,2]
[420079712,1775657434603,-500.38729573,9.663e-05,2]
[420079713,1775657434614,-500.0,9.663e-05,2]
[420079714,1775657434625,-503.42744374,9.663e-05,2]
[420079715,1775657434635,-350.25420974,9.663e-05,2]
[420079716,1775657434652,-500.0,9.663e-05,2]
[420079717,1775657434663,-4874.812,9.663e-05,2]
[420079718,1775657434675,-297.101,9.663e-05,2]
[420079719,1775657434685,-1940.0,9.665e-05,2]
[420079720,1775657434696,-5707.27,9.671e-05,2]
[420079721,1775657434707,-1377.0,9.685e-05,2]
[420079722,1775657434718,-258.57633035,9.688e-05,2]
[420079723,1775657434728,-196.25138621,9.688e-05,2]
[420079724,1775657434739,-150.0,9.689e-05,2]
[420079725,1775657434749,-10626.25707869,9.689e-05,2]
[420079726,1775657434759,-33041.7805,9.689e-05,2]
[420079727,1775657434769,-1394683.38688732,9.689e-05,2]
[420079728,1775657434783,-1008.75000001,9.689e-05,2]
[420079729,1775657434795,-299.23478,9.689e-05,2]
[420079730,1775657434807,-756.35463349,9.689e-05,2]
[420079731,1775657434820,-7859.84457289,9.689e-05,2]
[420079732,1775657434832,-62119.4032903,9.689e-05,2]
[420079733,1775657434844,-510.61,9.689e-05,2]
[420079734,1775657434860,-987.95536,9.689e-05,2]
[420079735,1775657434873,-869.66570832,9.689e-05,2]
[420079736,1775657434884,-6656.3528631,9.689e-05,2]
[420079737,1775657434896,-454.4361659,9.689e-05,2]
[420079738,1775657434909,-28311.12845685,9.689e-05,2]
[420079739,1775657434921,-12212.54101581,9.689e-05,2]
[420079740,1775657434933,-713.12,9.689e-05,2]
[420079741,1775657434944,-388.019697,9.689e-05,2]
[420079742,1775657434958,-2197.44542702,9.689e-05,2]
[420079743,1775657434971,-91530.71852926,9.689e-05,2]
[420079744,1775657434983,-14509.76393067,9.689e-05,2]
[420079745,1775657435050,-1181.23046143,9.689e-05,2]
[420079746,1775657435067,-850.09467,9.689e-05,2]
[420079750,1775657438657,-1242.0,9.614e-05,2]
[420079751,1775657438668,-1384.0,9.633e-05,2]
[420079752,1775657438679,-170952.81466723,9.689e-05,2]
[420079754,1775657438693,-1343.44849106,9.689e-05,2]
[420079755,1775657438706,-828.73,9.689e-05,2]
[420079756,1775657438718,-1131.15988836,9.689e-05,2]
[420079757,1775657438732,-428.22640942,9.689e-05,2]
[420079758,1775657438745,-2052.33614888,9.689e-05,2]
[420079759,1775657438758,-1455.62678898,9.689e-05,2]
[420079760,1775657438771,-1382.34563346,9.689e-05,2]
[420079761,1775657438784,-4248.40679235,9.689e-05,2]
[420079762,1775657438800,-606.81999954,9.689e-05,2]
[420079763,1775657439228,-3800.55334224,9.689e-05,2]
[420079766,1775657439245,-11193.98425145,9.689e-05,2]
[420079768,1775657439261,-1499.23828008,9.689e-05,2]
[420079770,1775657439273,-1128.37587025,9.689e-05,2]
[420080019,1775657441877,-289.0,9.689e-05,2]
[420080021,1775657441887,-68704.89967989,9.689e-05,2]
[420080022,1775657441900,-2077.0,9.689e-05,2]
[420080023,1775657441912,-2470.0,9.689e-05,2]
[420080024,1775657441924,-596595.97730744,9.689e-05,2]
[420080025,1775657441935,-1000.0,9.689e-05,2]
[420080026,1775657441946,-1847.0,9.692e-05,2]
[420080027,1775657441956,-735.0,9.704e-05,2]
[420080028,1775657441967,-354.0,9.712e-05,2]
[420080029,1775657441977,-1567.0,9.723e-05,2]
[420080030,1775657441988,-1709.0,9.731e-05,2]
[420080031,1775657441998,-1896.0,9.742e-05,2]
[420080032,1775657442008,-1479.0,9.75e-05,2]
[420080033,1775657442018,-736.0,9.762e-05,2]
[420080034,1775657442028,-186.67,9.833e-05,2]
[420080035,1775657442040,-500.0,9.862e-05,2]
[420080036,1775657442050,-151.0,0.0001,2]
[420080037,1775657442060,-151.0,0.0001,2]
[420080038,1775657442072,-151.0,0.0001,2]
[420080039,1775657442089,-151.0,0.0001,2]
[420080040,1775657442104,-151.0,0.0001,2]
[420080042,1775657442116,-500.0,0.0001,2]
[420080044,1775657442126,-151.0,0.0001,2]
[420080046,1775657442137,-500.0,0.0001,2]
[420080048,1775657442148,-151.0,0.0001,2]
[420080050,1775657442159,-500.0,0.0001,2]
[420080052,1775657442169,-151.0,0.0001,2]
[420080054,1775657442180,-500.0,0.0001,2]
[420080056,1775657442191,-151.0,0.0001,2]
[420080058,1775657442201,-200.0,0.0001,2]
[420080060,1775657442211,-500.0,0.0001,2]
[420080062,1775657442222,-151.0,0.0001,2]
[420080064,1775657442232,-500.0,0.0001,2]
[420080066,1775657442243,-151.0,0.0001,2]
[420080068,1775657442253,-500.0,0.0001,2]
[420080070,1775657442263,-151.0,0.0001,2]
[420080072,1775657442273,-500.0,0.0001,2]
[420080087,1775657442846,-151.0,0.0001,2]
[420080088,1775657442857,-500.0,0.0001,2]
[420080089,1775657442867,-151.0,0.0001,2]
[420080090,1775657442878,-500.0,0.0001,2]
[420080091,1775657442888,-500.0,0.0001,2]
[420080092,1775657442898,-151.0,0.0001,2]
[420080093,1775657442908,-500.0,0.0001,2]
[420080094,1775657442918,-500.0,0.0001,2]
[420080095,1775657442934,-500.0,0.0001,2]
[420080096,1775657442945,-500.0,0.0001,2]
[420080097,1775657442955,-500.0,0.0001,2]
[420080098,1775657442966,-500.0,0.0001,2]
[420080099,1775657442977,-500.0,0.0001,2]
[420080100,1775657442987,-500.0,0.0001,2]
[420080101,1775657442998,-500.0,0.0001,2]
[420080102,1775657443009,-151.0,0.0001,2]
[420080103,1775657443020,-500.0,0.0001,2]
[420080104,1775657443032,-151.0,0.0001,2]
[420080105,1775657443043,-500.0,0.0001,2]
[420080106,1775657443055,-151.0,0.0001,2]
[420080107,1775657443067,-500.0,0.0001,2]
[420080108,1775657443078,-151.0,0.0001,2]
[420080109,1775657443092,-500.0,0.0001,2]
[420080110,1775657443105,-151.0,0.0001,2]
[420080114,1775657443116,-500.0,0.0001,2]
[420080117,1775657443129,-151.0,0.0001,2]
[420080118,1775657443142,-500.0,0.0001,2]
[420080120,1775657443154,-151.0,0.0001,2]
[420080121,1775657443165,-500.0,0.0001,2]
[420080123,1775657443176,-151.0,0.0001,2]
[420080124,1775657443187,-151.0,0.0001,2]
[420080125,1775657443198,-500.0,0.0001,2]
[420080126,1775657443210,-151.0,0.0001,2]
[420080127,1775657443221,-538.11905532,0.0001,2]
[420080128,1775657443232,-151.0,0.0001,2]
[420080129,1775657443244,-151.0,0.0001,2]
[420080130,1775657443255,-151.0,0.0001,2]
[420080131,1775657443266,-151.0,0.0001,2]
[420080132,1775657443277,-151.0,0.0001,2]
[420080133,1775657443288,-151.0,0.0001,2]
[420080134,1775657443299,-151.0,0.0001,2]
[420080135,1775657443311,-151.0,0.0001,2]
[420080136,1775657443322,-151.0,0.0001,2]
[420080137,1775657443333,-151.0,0.0001,2]
[420080138,1775657443343,-151.0,0.0001,2]
[420080139,1775657443354,-1199.20597015,0.0001,2]
[420080140,1775657443365,-152.64494361,0.0001,2]
[420080141,1775657443376,-49359.0,0.0001,2]
[420080142,1775657443387,-249.22320734,0.0001,2]
[420080143,1775657443398,-489.18139785,0.0001,2]
[420080144,1775657443409,-182.8797037,0.0001,2]
[420080145,1775657443421,-182.8797037,0.0001,2]
[420080146,1775657443431,-17815.67883391,0.0001,2]
[420080147,1775657443442,-348.68212697,0.0001,2]
[420080148,1775657443456,-261.69532138,0.000101,2]
[420080149,1775657443467,-500.0,0.00010136,2]
[420080150,1775657443478,-186.67,0.00010172,2]
[420080151,1775657443489,-1000.0,0.00010211,2]
[420080152,1775657443499,-1000.0,0.00010211,2]
[420080153,1775657443510,-1000.0,0.00010211,2]
[420080154,1775657443521,-1000.0,0.00010211,2]
[420080155,1775657443533,-501.73893264,0.00010211,2]
[420080156,1775657443543,-1000.0,0.00010211,2]
[420080157,1775657443555,-1000.0,0.00010211,2]
[420080158,1775657443567,-1000.0,0.00010211,2]
[420080159,1775657443578,-1000.0,0.00010211,2]
[420080160,1775657443589,-1680.0,0.00010298,2]
[420080161,1775657443600,-250.0,0.00010299,2]
[420080162,1775657443610,-5533.0,0.000103,3]
[420080163,1775657443621,-300.0,0.00010333,2]
[420080164,1775657443632,-420.0,0.00010333,2]
[420080165,1775657443643,-232.0,0.00010333,2]
[420080166,1775657443654,-1083.0,0.00010335,2]
[420080167,1775657443664,-211.4,0.00010389,2]
[420080168,1775657443674,-211.4,0.00010389,2]
[420080169,1775657443685,-211.4,0.00010389,2]
[420080170,1775657443696,-500.0,0.0001041,2]
[420080171,1775657443706,-150.0,0.00010464,2]
[420080172,1775657443716,-186.67,0.00010511,2]
[420080173,1775657443727,-255.0,0.00010529,2]
[420080174,1775657443738,-200.0,0.00010548,2]
[420080175,1775657443748,-1243.57659104,0.00010548,2]
[420080176,1775657443759,-150.0,0.000106,2]
[420080177,1775657443769,-5533.0,0.000106,5]
[420080178,1775657443779,-2662.5,0.00010658,2]
[420080179,1775657443790,-2662.5,0.00010658,2]
[420080180,1775657443802,-2662.5,0.00010658,2]
[420080181,1775657443813,-2662.5,0.00010658,2]
[420080182,1775657443823,-2662.5,0.00010658,2]
[420080183,1775657443834,-500.0,0.00010684,2]
[420080184,1775657443845,-4058274.13688363,0.000107,2]
[420080185,1775657443855,-502.00296386,0.00010758,2]
[420080186,1775657443866,-1001.20287893,0.00010758,2]
[420080187,1775657443876,-1000.0,0.00010758,2]
[420080188,1775657443887,-1500.0,0.00010758,2]
[420080189,1775657443897,-1500.0,0.00010758,2]
[420080190,1775657443908,-1500.0,0.00010758,2]
[420080191,1775657443918,-186.67,0.0001085,2]
[420080192,1775657443929,-336.46720663,0.00010958,2]
[420080193,1775657443939,-500.0,0.00010959,2]
[420080194,1775657443951,-150.0,0.00010959,2]
[420080195,1775657443961,-2210.82,0.00010964,2]
[420080196,1775657443972,-182.60576374,0.00010989,2]
[420080197,1775657443983,-200.0,0.00011096,2]
[420080198,1775657443994,-332.61611279,0.00011096,2]
[420080199,1775657444005,-5671.11113497,0.00011099,2]
[420080200,1775657444015,-5671.11113494,0.00011099,2]
[420080201,1775657444026,-5671.11113494,0.00011099,2]
[420080202,1775657444037,-7993.35942929,0.00011099,2]
[420080203,1775657444048,-7993.35942921,0.00011099,2]
[420080204,1775657444057,-7993.35942921,0.00011099,2]
[420080205,1775657444067,-186.67,0.00011189,2]
[420080207,1775657444077,-267.49087099,0.0001122,2]
[420080208,1775657444087,-273.56010649,0.0001122,2]
[420080209,1775657444098,-150.0,0.00011233,2]
[420080210,1775657444108,-2000.0,0.00011306,2]
[420080211,1775657444118,-2000.0,0.00011306,2]
[420080212,1775657444140,-2351.0,0.00011328,2]
[420080213,1775657444151,-587.0,0.00011367,2]
[420080214,1775657444162,-231.0,0.00011418,2]
[420080215,1775657444173,-186.67,0.00011528,2]
[420080216,1775657444184,-433.0,0.00011582,2]
[420080217,1775657444194,-200.0,0.00011644,2]
[420080218,1775657444204,-5671.11113494,0.00011689,2]
[420080219,1775657444215,-7993.35942921,0.00011689,2]
[420080220,1775657444225,-1017.45482461,0.00011854,2]
[420080221,1775657444235,-2169.35545907,0.00011854,2]
[420080222,1775657444247,-186.67,0.00011867,2]
[420080223,1775657444257,-172.4346,0.00012,2]
[420080224,1775657444266,-200.0,0.00012192,2]
[420080225,1775657444277,-186.67,0.00012206,2]
[420080226,1775657444287,-5671.11113494,0.00012389,2]
[420080227,1775657444299,-7993.35942921,0.00012389,2]
[420080228,1775657444309,-3292.0,0.00012461,2]
[420080229,1775657444320,-823.0,0.00012503,2]
[420080230,1775657444330,-186.67,0.00012545,2]
[420080231,1775657444341,-407.006115,0.00012739,2]
[420080232,1775657444352,-160.0,0.00012739,2]
[420080233,1775657444362,-260.707962,0.00012739,2]
[420080234,1775657444373,-361.415925,0.00012739,2]
[420080235,1775657444383,-160.0,0.00012739,2]
[420080236,1775657444393,-311.273454,0.00012739,2]
[420080237,1775657444403,-462.546909,0.00012739,2]
[420080238,1775657444414,-200.0,0.0001274,2]
[420080239,1775657444423,-736.0,0.0001274,2]
[420080240,1775657444433,-249.22320732,0.00012745,2]
[420080241,1775657444444,-10626.25707867,0.00012745,2]
[420080242,1775657444454,-150.0,0.00012817,2]
[420080243,1775657444465,-188.822137,0.00012828,2]
[420080244,1775657444475,-186.67,0.00012885,2]
[420080245,1775657444488,-59578.2315948,0.00012999,2]
[420080246,1775657444498,-250.0,0.00013,2]
[420080247,1775657444509,-159.0,0.00013,2]
[420080248,1775657444520,-5671.11113494,0.0001309,2]
[420080249,1775657444530,-7993.35942921,0.0001309,2]
[420080250,1775657444540,-501.0,0.000131,2]
[420080251,1775657444551,-2210.82,0.00013127,2]
[420080252,1775657444562,-1278.0,0.00013187,5]
[420080253,1775657444571,-163.5,0.00013237,2]
[420080254,1775657444581,-198.2247,0.000133,2]
[420080255,1775657444591,-185.002779,0.00013376,2]
[420080256,1775657444601,-355.510857,0.00013376,2]
[420080257,1775657444612,-424.463802,0.00013376,2]
[420080258,1775657444622,-1136.06120836,0.00013424,2]
[420080259,1775657444632,-1011.53761496,0.00013424,2]
[420080260,1775657444642,-1010.06859786,0.00013424,2]
[420080261,1775657444653,-1119.27276512,0.00013424,2]
[420080262,1775657444663,-1018.53503002,0.00013424,2]
[420080263,1775657444673,-1095.73437894,0.00013424,2]
[420080264,1775657444684,-3240.0,0.00013425,2]
[420080265,1775657444694,-200.0,0.00013699,2]
[420080266,1775657444704,-153.78095784,0.00013699,2]
[420080267,1775657444714,-4609.0,0.00013707,2]
[420080268,1775657444725,-1152.0,0.00013754,2]
[420080269,1775657444735,-5671.11113494,0.0001379,2]
[420080270,1775657444745,-7993.35942921,0.0001379,2]
[420080271,1775657444756,-500.0,0.00013945,2]
[420080272,1775657444767,-159.0,0.00014,2]
[420080273,1775657444778,-1252.0,0.00014013,2]
[420080274,1775657444789,-1000.0,0.00014026,7]
[420080275,1775657444800,-155.32006584,0.00014141,2]
[420080276,1775657444810,-501.0,0.00014197,2]
[420080277,1775657444820,-390.68773847,0.00014361,2]
[420080278,1775657444830,-5671.11113494,0.0001449,2]
[420080279,1775657444841,-7993.35942921,0.0001449,2]
[420080280,1775657444851,-227.8721,0.000146,2]
[420080281,1775657444862,-184.865646,0.0001465,7]
[420080282,1775657444873,-220.721177,0.0001465,2]
[420080283,1775657444884,-214.48,0.00014688,2]
[420080284,1775657444894,-163.5,0.00014784,2]
[420080285,1775657444904,-578.20924308,0.00014902,2]
[420080286,1775657444915,-181.08010149,0.00014902,2]
[420080287,1775657444925,-200.0,0.00014902,2]
[420080288,1775657444935,-623.58710448,0.00014902,2]
[420080289,1775657444945,-500.0,0.00014902,2]
[420080290,1775657444956,-1235.18214925,0.00014902,2]
[420080291,1775657444967,-743.50770149,0.00014902,2]
[420080292,1775657444977,-151.0,0.00014902,2]
[420080293,1775657444987,-174.61919141,0.00014902,2]
[420080294,1775657444998,-170.0,0.00014902,2]
[420080295,1775657445008,-170.0,0.00014902,2]
[420080296,1775657445020,-170.0,0.00014902,2]
[420080297,1775657445032,-170.0,0.00014902,2]
[420080298,1775657445042,-170.0,0.00014902,2]
[420080299,1775657445053,-170.0,0.00014902,2]
[420080300,1775657445064,-170.0,0.00014902,2]
[420080301,1775657445075,-170.0,0.00014902,2]
[420080302,1775657445085,-170.0,0.00014902,2]
[420080303,1775657445095,-170.0,0.00014902,2]
[420080304,1775657445106,-170.0,0.00014902,2]
[420080305,1775657445116,-170.0,0.00014902,2]
[420080306,1775657445126,-170.0,0.00014902,2]
[420080307,1775657445137,-170.0,0.00014902,2]
[420080308,1775657445148,-170.0,0.00014902,2]
[420080309,1775657445159,-500.0,0.00014957,2]
[420080310,1775657445169,-151.0,0.00014957,2]
[420080311,1775657445180,-160.0,0.00015,2]
[420080312,1775657445190,-2756.92717347,0.00015,2]
[420080313,1775657445201,-300.0,0.00015,2]
[420080314,1775657445212,-159.0,0.00015,2]
[420080315,1775657445224,-1007.07827575,0.00015,2]
[420080316,1775657445234,-500.0,0.00015012,2]
[420080317,1775657445244,-151.0,0.00015012,2]
[420080318,1775657445254,-160.0,0.00015023,2]
[420080319,1775657445265,-6934.86459212,0.00015056,2]
[420080320,1775657445275,-500.0,0.00015067,2]
[420080321,1775657445287,-151.0,0.00015067,2]
[420080322,1775657445297,-840.38,0.00015068,2]
[420080323,1775657445309,-6453.0,0.00015078,2]
[420080324,1775657445321,-2010.0,0.000151,2]
[420080325,1775657445332,-3449.0,0.000151,2]
[420080326,1775657445343,-500.0,0.00015122,2]
[420080327,1775657445354,-151.0,0.00015122,2]
[420080328,1775657445366,-1406.0,0.00015129,2]
[420080329,1775657445377,-500.0,0.00015177,2]
[420080330,1775657445388,-151.0,0.00015177,2]
[420080331,1775657445398,-5671.11113494,0.0001519,2]
[420080332,1775657445409,-7993.35942921,0.0001519,2]
[420080333,1775657445419,-350.0,0.00015201,2]
[420080334,1775657445430,-150.0,0.00015226,2]
[420080335,1775657445441,-150.0,0.00015226,2]
[420080336,1775657445452,-150.0,0.00015226,2]
[420080337,1775657445463,-150.0,0.00015226,2]
[420080338,1775657445474,-150.0,0.00015226,2]
[420080339,1775657445485,-150.0,0.00015226,2]
[420080340,1775657445496,-150.0,0.00015226,2]
[420080341,1775657445505,-150.0,0.00015226,2]
[420080342,1775657445516,-150.0,0.00015226,2]
[420080343,1775657445527,-150.0,0.00015226,2]
[420080344,1775657445539,-150.0,0.00015226,2]
[420080345,1775657445550,-150.0,0.00015226,2]
[420080346,1775657445562,-150.0,0.00015226,2]
[420080347,1775657445573,-150.0,0.00015226,2]
[420080348,1775657445584,-150.0,0.00015226,2]
[420080349,1775657445596,-150.0,0.00015226,2]
[420080350,1775657445608,-150.0,0.00015226,2]
[420080351,1775657445620,-150.0,0.00015226,2]
[420080352,1775657445630,-150.0,0.00015226,2]
[420080353,1775657445641,-150.0,0.00015226,2]
[420080354,1775657445657,-296.36296758,0.00015226,2]
[420080355,1775657445668,-500.0,0.00015226,2]
[420080356,1775657445680,-500.0,0.00015226,2]
[420080357,1775657445692,-500.0,0.00015226,2]
[420080358,1775657445702,-500.0,0.00015226,2]
[420080359,1775657445713,-150.0,0.00015226,2]
[420080360,1775657445724,-500.0,0.00015226,2]
[420080361,1775657445734,-150.0,0.00015226,2]
[420080362,1775657445746,-373.1493795,0.00015226,2]
[420080363,1775657445757,-500.0,0.00015226,2]
[420080364,1775657445768,-150.0,0.00015226,2]
[420080365,1775657445779,-150.0,0.00015226,2]
[420080366,1775657445791,-500.0,0.00015226,2]
[420080367,1775657445802,-150.0,0.00015226,2]
[420080368,1775657445814,-245.51112262,0.00015226,2]
[420080369,1775657445826,-500.0,0.00015226,2]
[420080370,1775657445837,-500.0,0.00015226,2]
[420080371,1775657445848,-272.94970253,0.00015226,2]
[420080372,1775657445860,-500.0,0.00015232,2]
[420080373,1775657445871,-151.0,0.00015232,2]
[420080374,1775657445882,-500.0,0.00015287,2]
[420080375,1775657445894,-151.0,0.00015287,2]
[420080376,1775657445906,-2210.82,0.0001529,2]
[420080377,1775657445917,-501.0,0.00015293,3]
[420080378,1775657445928,-29999.99,0.0001531,2]
[420080379,1775657445939,-12753.37,0.0001531,2]
[420080380,1775657445949,-9999.99,0.0001531,2]
[420080381,1775657445959,-500.0,0.00015342,2]
[420080382,1775657445971,-151.0,0.00015342,2]
[420080383,1775657445981,-500.0,0.00015397,2]
[420080384,1775657445992,-151.0,0.00015397,2]
[420080385,1775657446004,-2129.0,0.0001542,2]
[420080386,1775657446015,-187.78006525,0.0001545,2]
[420080387,1775657446026,-200.0,0.0001545,2]
[420080388,1775657446038,-1280.88388878,0.0001545,2]
[420080389,1775657446049,-771.01748645,0.0001545,2]
[420080390,1775657446061,-181.08010149,0.0001545,2]
[420080391,1775657446071,-500.0,0.00015452,2]
[420080392,1775657446083,-151.0,0.00015452,2]
[420080393,1775657446094,-250.0,0.00015468,2]
[420080394,1775657446105,-4000.0,0.00015507,2]
[420080395,1775657446116,-500.0,0.00015507,2]
[420080396,1775657446127,-151.0,0.00015507,2]
[420080397,1775657446138,-25000.0,0.0001552,3]
[420080398,1775657446148,-6976.45084756,0.00015522,2]
[420080399,1775657446159,-500.0,0.00015562,2]
[420080400,1775657446169,-151.0,0.00015562,2]
[420080401,1775657446180,-13558.0493262,0.00015575,2]
[420080402,1775657446192,-859.8029686,0.00015575,2]
[420080403,1775657446203,-1354.0,0.00015577,5]
[420080404,1775657446214,-350.0,0.00015606,2]
[420080405,1775657446225,-500.0,0.00015617,2]
[420080406,1775657446236,-151.0,0.00015617,2]
[420080407,1775657446246,-500.0,0.00015672,2]
[420080408,1775657446258,-296.68813754,0.00015672,2]
[420080409,1775657446270,-150.0,0.000157,2]
[420080410,1775657446281,-104940.9220984,0.0001571,2]
[420080411,1775657446292,-318.0,0.00015737,2]
[420080412,1775657446304,-350.0,0.00015747,2]
[420080413,1775657446314,-150.0,0.00015756,2]
[420080414,1775657446325,-1500.0,0.00015778,2]
[420080415,1775657446336,-1500.0,0.00015778,2]
[420080416,1775657446347,-150.0,0.00015805,2]
[420080417,1775657446358,-1000.0,0.00015814,2]
[420080418,1775657446368,-414.0,0.00015819,2]
[420080419,1775657446378,-97438.76421008,0.0001584,2]
[420080420,1775657446389,-2000.0,0.0001584,2]
[420080421,1775657446399,-2000.0,0.0001584,2]
[420080422,1775657446409,-2000.0,0.0001585,2]
[420080423,1775657446419,-1000.0,0.00015851,2]
[420080424,1775657446430,-1000.0,0.00015852,2]
[420080425,1775657446441,-163.8001,0.0001586,2]
[420080426,1775657446450,-163.8001,0.0001587,2]